[Event "Early-Titled-Tuesday-Blitz-April-02-2024"]
[Site "Chess.com"]
[Date "2024.04.02"]
[Round "1"]
[White "tarno17"]
[Black "Nf3c5"]
[Result "0-1"]
[WhiteElo "2157"]
[BlackElo "2575"]
[TimeControl "180+1"]
[EndTime "8:07:31 PDT"]
[Termination "Nf3c5 won by resignation"]

1. e4 {[%clk 0:02:59.8]} 1... c5 {[%clk 0:02:58.9]} 2. Nf3 {[%clk 0:02:58]} 2...
Nc6 {[%clk 0:02:58.8]} 3. Bb5 {[%clk 0:02:55.1]} 3... Na5 {[%clk 0:02:55.7]} 4.
a4 {[%clk 0:02:47.4]} 4... a6 {[%clk 0:02:50]} 5. Be2 {[%clk 0:02:44.7]} 5...
Nf6 {[%clk 0:02:42.1]} 6. d3 {[%clk 0:02:42.8]} 6... Nc6 {[%clk 0:02:37.4]} 7.
O-O {[%clk 0:02:43.3]} 7... d6 {[%clk 0:02:36]} 8. Nc3 {[%clk 0:02:42.5]} 8...
g6 {[%clk 0:02:36.3]} 9. h3 {[%clk 0:02:34.3]} 9... Bg7 {[%clk 0:02:36.5]} 10.
Nh2 {[%clk 0:02:33.2]} 10... O-O {[%clk 0:02:36.9]} 11. f4 {[%clk 0:02:33.1]}
11... e6 {[%clk 0:02:34.1]} 12. Qe1 {[%clk 0:02:10.9]} 12... Rb8 {[%clk
0:02:30.8]} 13. g4 {[%clk 0:01:55.7]} 13... b5 {[%clk 0:02:28.5]} 14. axb5
{[%clk 0:01:54.3]} 14... axb5 {[%clk 0:02:29]} 15. Qg3 {[%clk 0:01:38]} 15... b4
{[%clk 0:02:21]} 16. Na4 {[%clk 0:01:27.4]} 16... c4 {[%clk 0:01:33.8]} 17. f5
{[%clk 0:01:22.8]} 17... exf5 {[%clk 0:01:13.9]} 18. gxf5 {[%clk 0:01:21.6]}
18... b3 {[%clk 0:01:08.8]} 19. Bf4 {[%clk 0:00:55.4]} 19... bxc2 {[%clk
0:01:00.7]} 20. Bxd6 {[%clk 0:00:48.3]} 20... cxd3 {[%clk 0:01:00.8]} 21. Bxd3
{[%clk 0:00:26]} 21... Nh5 {[%clk 0:00:58.6]} 22. Qg4 {[%clk 0:00:04.5]} 22...
Qxd6 {[%clk 0:00:55.2]} 23. Bxc2 {[%clk 0:00:05.1]} 23... Ne5 {[%clk 0:00:33.6]}
24. Qe2 {[%clk 0:00:04.4]} 24... Ba6 {[%clk 0:00:34.1]} 25. Qf2 {[%clk
0:00:03.5]} 25... Bxf1 {[%clk 0:00:32.7]} 26. Rxf1 {[%clk 0:00:04.1]} 26... Rbd8
{[%clk 0:00:19.2]} 27. Kh1 {[%clk 0:00:04.1]} 27... Nd3 {[%clk 0:00:17.3]} 28.
Qe3 {[%clk 0:00:02.7]} 28... Ng3+ {[%clk 0:00:16.8]} 29. Kg2 {[%clk 0:00:02.4]}
29... Nxf1 {[%clk 0:00:17.4]} 30. Kxf1 {[%clk 0:00:02.8]} 30... Nxb2 {[%clk
0:00:16.7]} 31. Ke2 {[%clk 0:00:02.7]} 31... Nxa4 {[%clk 0:00:16.3]} 32. Nf3
{[%clk 0:00:03.1]} 32... Qa6+ {[%clk 0:00:16.1]} 33. Kf2 {[%clk 0:00:03.3]}
33... Nc3 {[%clk 0:00:16.2]} 34. Kg3 {[%clk 0:00:03.4]} 34... Qd6+ {[%clk
0:00:16]} 35. Kg2 {[%clk 0:00:03.6]} 35... Nb5 {[%clk 0:00:14.8]} 36. Qg5 {[%clk
0:00:03.3]} 36... Nd4 {[%clk 0:00:14.8]} 37. Nh4 {[%clk 0:00:03.1]} 37... Qc5
{[%clk 0:00:14.1]} 38. f6 {[%clk 0:00:04]} 38... Qxc2+ {[%clk 0:00:14.1]} 39.
Kg3 {[%clk 0:00:03.1]} 39... h6 {[%clk 0:00:14.3]} 40. Qe3 {[%clk 0:00:02.9]}
40... Ne2+ {[%clk 0:00:13.9]} 41. Kf3 {[%clk 0:00:03.1]} 41... Rd3 {[%clk
0:00:13.6]} 42. fxg7 {[%clk 0:00:02.8]} 42... Rxe3+ {[%clk 0:00:13.9]} 43. Kxe3
{[%clk 0:00:03.7]} 43... Kxg7 {[%clk 0:00:13.6]} 0-1

[Event "Early-Titled-Tuesday-Blitz-April-02-2024"]
[Site "Chess.com"]
[Date "2024.04.02"]
[Round "1"]
[White "ploxoi"]
[Black "Hongjin"]
[Result "0-1"]
[WhiteElo "2430"]
[BlackElo "2734"]
[TimeControl "180+1"]
[EndTime "8:07:32 PDT"]
[Termination "Hongjin won by resignation"]

1. d4 {[%clk 0:03:00.9]} 1... d6 {[%clk 0:02:58]} 2. Nf3 {[%clk 0:03:00.6]} 2...
Nf6 {[%clk 0:02:53.7]} 3. c4 {[%clk 0:03:00.5]} 3... g6 {[%clk 0:02:52.2]} 4.
Nc3 {[%clk 0:03:00.2]} 4... Bf5 {[%clk 0:02:51.5]} 5. g3 {[%clk 0:02:57.4]} 5...
Bg7 {[%clk 0:02:51.4]} 6. Bg2 {[%clk 0:02:57.9]} 6... O-O {[%clk 0:02:51.5]} 7.
O-O {[%clk 0:02:58.4]} 7... Nc6 {[%clk 0:02:52]} 8. Nh4 {[%clk 0:02:56.7]} 8...
Bd7 {[%clk 0:02:50.6]} 9. Nf3 {[%clk 0:02:43.3]} 9... a6 {[%clk 0:02:46.1]} 10.
h3 {[%clk 0:02:26.3]} 10... Rb8 {[%clk 0:02:43.2]} 11. a3 {[%clk 0:02:15.1]}
11... b5 {[%clk 0:02:40.9]} 12. cxb5 {[%clk 0:02:14]} 12... axb5 {[%clk
0:02:41.8]} 13. b4 {[%clk 0:02:14.3]} 13... Qc8 {[%clk 0:02:36.7]} 14. Kh2
{[%clk 0:02:11.7]} 14... Rd8 {[%clk 0:02:31]} 15. Qb3 {[%clk 0:02:04.9]} 15...
e5 {[%clk 0:02:23.2]} 16. d5 {[%clk 0:01:45.5]} 16... Ne7 {[%clk 0:02:21.5]} 17.
e4 {[%clk 0:01:34.5]} 17... Rf8 {[%clk 0:02:13.2]} 18. Ne1 {[%clk 0:01:30.7]}
18... Nh5 {[%clk 0:02:09.4]} 19. Nd3 {[%clk 0:01:26.9]} 19... f5 {[%clk
0:01:57.8]} 20. Bg5 {[%clk 0:01:26.6]} 20... Qd8 {[%clk 0:01:48.4]} 21. Bf3
{[%clk 0:01:11.6]} 21... Nf6 {[%clk 0:01:44.1]} 22. Rac1 {[%clk 0:01:06.7]}
22... h6 {[%clk 0:01:43]} 23. Bd2 {[%clk 0:01:06.1]} 23... g5 {[%clk 0:01:40.5]}
24. Rc2 {[%clk 0:00:23.5]} 24... Ng6 {[%clk 0:01:29.2]} 25. exf5 {[%clk
0:00:22.6]} 25... Bxf5 {[%clk 0:01:28.9]} 26. Be2 {[%clk 0:00:12.6]} 26... e4
{[%clk 0:01:29.1]} 27. Ne1 {[%clk 0:00:12]} 27... e3 {[%clk 0:01:20]} 28. Bxe3
{[%clk 0:00:12.1]} 28... Bxc2 {[%clk 0:01:20.1]} 29. Nxc2 {[%clk 0:00:12.8]}
29... Nd7 {[%clk 0:01:11.4]} 30. Nd4 {[%clk 0:00:12.7]} 30... Bxd4 {[%clk
0:01:11.3]} 31. Bxd4 {[%clk 0:00:13.6]} 31... Nde5 {[%clk 0:01:11.7]} 32. Ne4
{[%clk 0:00:11.8]} 32... Qd7 {[%clk 0:01:07.9]} 33. Bh5 {[%clk 0:00:11.6]} 33...
Qf5 {[%clk 0:01:03.9]} 34. Qc2 {[%clk 0:00:09.2]} 34... Rbe8 {[%clk 0:01:01.3]}
35. f3 {[%clk 0:00:08.4]} 35... Re7 {[%clk 0:00:54.3]} 36. Kg2 {[%clk
0:00:08.7]} 36... Qf7 {[%clk 0:00:51.2]} 37. Qe2 {[%clk 0:00:05.8]} 37... Kh7
{[%clk 0:00:50]} 38. Qxb5 {[%clk 0:00:05.9]} 38... Nh4+ {[%clk 0:00:42.3]} 39.
gxh4 {[%clk 0:00:04.7]} 39... Qxh5 {[%clk 0:00:43]} 40. hxg5 {[%clk 0:00:03.8]}
40... hxg5 {[%clk 0:00:39.6]} 41. Ng3 {[%clk 0:00:01.8]} 41... Qg6 {[%clk
0:00:38.5]} 42. Qe2 {[%clk 0:00:02.7]} 42... Nc6 {[%clk 0:00:34]} 43. Qd2 {[%clk
0:00:03.2]} 43... Nxd4 {[%clk 0:00:32.5]} 44. Qxd4 {[%clk 0:00:04.1]} 44... Rf4
{[%clk 0:00:31.7]} 45. Qc3 {[%clk 0:00:03.7]} 45... Qf6 {[%clk 0:00:28.1]} 46.
Rf2 {[%clk 0:00:04.3]} 46... Qxc3 {[%clk 0:00:28.2]} 0-1

[Event "Early-Titled-Tuesday-Blitz-April-02-2024"]
[Site "Chess.com"]
[Date "2024.04.02"]
[Round "1"]
[White "Manukyan_Artak"]
[Black "FLYD"]
[Result "1/2-1/2"]
[WhiteElo "2546"]
[BlackElo "1910"]
[TimeControl "180+1"]
[EndTime "8:07:32 PDT"]
[Termination "Game drawn by agreement"]

1. e4 {[%clk 0:03:00.5]} 1... c5 {[%clk 0:02:59.7]} 2. Nf3 {[%clk 0:03:00.3]}
2... Nc6 {[%clk 0:03:00.3]} 3. c3 {[%clk 0:02:59]} 3... d5 {[%clk 0:02:59.7]} 4.
exd5 {[%clk 0:02:58.1]} 4... Qxd5 {[%clk 0:03:00.6]} 5. d4 {[%clk 0:02:58.9]}
5... e5 {[%clk 0:03:00.8]} 6. dxe5 {[%clk 0:02:58.2]} 6... Qxd1+ {[%clk
0:03:01.4]} 7. Kxd1 {[%clk 0:02:58.7]} 7... Bg4 {[%clk 0:03:02.1]} 8. Bf4 {[%clk
0:02:56.9]} 8... O-O-O+ {[%clk 0:03:02.5]} 9. Nd2 {[%clk 0:02:56.2]} 9... Nge7
{[%clk 0:03:01.1]} 10. Kc1 {[%clk 0:02:49.7]} 10... Ng6 {[%clk 0:02:59.1]} 11.
Bg3 {[%clk 0:02:48.9]} 11... h5 {[%clk 0:02:45.8]} 12. h3 {[%clk 0:02:46.9]}
12... Bf5 {[%clk 0:02:43.5]} 13. Bb5 {[%clk 0:02:36.3]} 13... Nce7 {[%clk
0:02:24.2]} 14. Ng5 {[%clk 0:02:31.1]} 14... a6 {[%clk 0:02:14.9]} 15. Bc4
{[%clk 0:02:16.5]} 15... b5 {[%clk 0:02:14.8]} 16. Bxf7 {[%clk 0:02:10.3]} 16...
Nc6 {[%clk 0:02:08.4]} 17. f4 {[%clk 0:02:05.8]} 17... Be7 {[%clk 0:02:02.4]}
18. Be6+ {[%clk 0:02:02.2]} 18... Bxe6 {[%clk 0:02:00.6]} 19. Nxe6 {[%clk
0:02:03.1]} 19... Rd3 {[%clk 0:01:58]} 20. Bf2 {[%clk 0:01:54.6]} 20... h4
{[%clk 0:01:37.8]} 21. Ne4 {[%clk 0:01:48.5]} 21... c4 {[%clk 0:01:24.2]} 22. a4
{[%clk 0:01:45.6]} 22... b4 {[%clk 0:01:23.1]} 23. Rd1 {[%clk 0:01:40.3]} 23...
bxc3 {[%clk 0:01:15.6]} 24. bxc3 {[%clk 0:01:35.8]} 24... Na5 {[%clk 0:00:49.6]}
25. Rxd3 {[%clk 0:01:23.2]} 25... cxd3 {[%clk 0:00:50.5]} 26. Rb1 {[%clk
0:01:23.6]} 26... Nc4 {[%clk 0:00:48.5]} 27. Bc5 {[%clk 0:01:10.2]} 27... Bxc5
{[%clk 0:00:46.6]} 28. N4xc5 {[%clk 0:01:02.2]} 28... a5 {[%clk 0:00:32.2]} 29.
Rb7 {[%clk 0:00:56.8]} 29... d2+ {[%clk 0:00:31.5]} 30. Kd1 {[%clk 0:00:56.1]}
30... Re8 {[%clk 0:00:21.8]} 31. Rc7+ {[%clk 0:00:46.4]} 31... Kb8 {[%clk
0:00:20.6]} 32. Na6+ {[%clk 0:00:43.2]} 32... Ka8 {[%clk 0:00:20.8]} 33. Rxc4
{[%clk 0:00:43.9]} 33... Ka7 {[%clk 0:00:17.7]} 34. Nac7 {[%clk 0:00:42.8]}
34... Rh8 {[%clk 0:00:16.2]} 35. Rc5 {[%clk 0:00:42]} 35... Nxf4 {[%clk
0:00:15.8]} 36. Nxf4 {[%clk 0:00:41.6]} 36... g5 {[%clk 0:00:16.5]} 37. Nfe6
{[%clk 0:00:41.6]} 37... g4 {[%clk 0:00:17.2]} 38. hxg4 {[%clk 0:00:41.5]} 38...
h3 {[%clk 0:00:17]} 39. gxh3 {[%clk 0:00:42.4]} 39... Rxh3 {[%clk 0:00:16.3]}
40. Kxd2 {[%clk 0:00:40.9]} 40... Kb6 {[%clk 0:00:16.2]} 41. Rb5+ {[%clk
0:00:40.7]} 41... Ka7 {[%clk 0:00:14.3]} 42. Rxa5+ {[%clk 0:00:40.7]} 42... Kb7
{[%clk 0:00:14.8]} 43. Rb5+ {[%clk 0:00:41.6]} 43... Ka7 {[%clk 0:00:14.3]} 44.
g5 {[%clk 0:00:42.1]} 44... Rd3+ {[%clk 0:00:12.6]} 45. Kc2 {[%clk 0:00:42]}
45... Rxc3+ {[%clk 0:00:10.8]} 46. Kb2 {[%clk 0:00:42.3]} 46... Rb3+ {[%clk
0:00:08.9]} 47. Ka1 {[%clk 0:00:36.6]} 47... Rb1+ {[%clk 0:00:06.9]} 48. Ka2
{[%clk 0:00:36.3]} 48... Rb2+ {[%clk 0:00:07.8]} 49. Ka3 {[%clk 0:00:37.2]}
49... Rb3+ {[%clk 0:00:08.1]} 50. Ka2 {[%clk 0:00:37.7]} 50... Rb2+ {[%clk
0:00:08.8]} 51. Ka1 {[%clk 0:00:38.1]} 51... Rb1+ {[%clk 0:00:09.4]} 1/2-1/2

[Event "Early-Titled-Tuesday-Blitz-April-02-2024"]
[Site "Chess.com"]
[Date "2024.04.02"]
[Round "1"]
[White "Balla_Tamas"]
[Black "Batica1984"]
[Result "0-1"]
[WhiteElo "2459"]
[BlackElo "2781"]
[TimeControl "180+1"]
[EndTime "8:07:33 PDT"]
[Termination "Batica1984 won by resignation"]

1. Nf3 {[%clk 0:02:56.4]} 1... c5 {[%clk 0:02:52]} 2. b3 {[%clk 0:02:56.6]} 2...
Nf6 {[%clk 0:02:44.2]} 3. Bb2 {[%clk 0:02:56.8]} 3... e6 {[%clk 0:02:40.7]} 4.
e3 {[%clk 0:02:56.8]} 4... Nc6 {[%clk 0:02:34.2]} 5. c4 {[%clk 0:02:56.4]} 5...
Be7 {[%clk 0:02:32.9]} 6. Be2 {[%clk 0:02:56.8]} 6... O-O {[%clk 0:02:32.9]} 7.
O-O {[%clk 0:02:57]} 7... d5 {[%clk 0:02:33]} 8. cxd5 {[%clk 0:02:56.7]} 8...
exd5 {[%clk 0:02:28.9]} 9. d4 {[%clk 0:02:56.7]} 9... Bg4 {[%clk 0:02:19.4]} 10.
dxc5 {[%clk 0:02:54.7]} 10... Bxc5 {[%clk 0:02:17.2]} 11. Nc3 {[%clk 0:02:54.8]}
11... Re8 {[%clk 0:02:10.1]} 12. Na4 {[%clk 0:02:54.3]} 12... Bd6 {[%clk
0:02:10.1]} 13. h3 {[%clk 0:02:53]} 13... Bxf3 {[%clk 0:02:05]} 14. Bxf3 {[%clk
0:02:53.9]} 14... Be5 {[%clk 0:02:05.5]} 15. Bxe5 {[%clk 0:02:42.1]} 15... Rxe5
{[%clk 0:01:54.1]} 16. Rc1 {[%clk 0:02:39.2]} 16... Qe7 {[%clk 0:01:53.6]} 17.
Nc5 {[%clk 0:02:38.6]} 17... Rd8 {[%clk 0:01:51]} 18. Nd3 {[%clk 0:02:38.4]}
18... Re6 {[%clk 0:01:40.5]} 19. Nf4 {[%clk 0:02:38.4]} 19... Re5 {[%clk
0:01:40.7]} 20. Nd3 {[%clk 0:02:29.6]} 20... Re6 {[%clk 0:01:36.8]} 21. Nf4
{[%clk 0:02:29.8]} 21... Red6 {[%clk 0:01:36.9]} 22. Re1 {[%clk 0:02:21.9]}
22... g6 {[%clk 0:01:30.9]} 23. Qc2 {[%clk 0:02:21.1]} 23... Ne5 {[%clk
0:01:29.1]} 24. Be2 {[%clk 0:02:16.7]} 24... d4 {[%clk 0:01:21.7]} 25. exd4
{[%clk 0:02:16.7]} 25... Rxd4 {[%clk 0:01:21.6]} 26. Nd3 {[%clk 0:02:08.1]}
26... Re4 {[%clk 0:01:20.5]} 27. Nxe5 {[%clk 0:01:59.5]} 27... Qxe5 {[%clk
0:01:18.6]} 28. Qc7 {[%clk 0:01:40.5]} 28... Rd2 {[%clk 0:01:13.6]} 29. Qxe5
{[%clk 0:01:37]} 29... Rxe5 {[%clk 0:01:14.5]} 30. Bf3 {[%clk 0:01:36.4]} 30...
Rxe1+ {[%clk 0:01:04.3]} 31. Rxe1 {[%clk 0:01:37.3]} 31... b6 {[%clk 0:00:59]}
32. Be2 {[%clk 0:01:21.8]} 32... Rxa2 {[%clk 0:00:57.2]} 33. Bc4 {[%clk
0:01:22.1]} 33... Kf8 {[%clk 0:00:57.1]} 34. Re3 {[%clk 0:01:15.1]} 34... Rd2
{[%clk 0:00:55]} 35. g4 {[%clk 0:01:11.7]} 35... g5 {[%clk 0:00:51.9]} 36. Re5
{[%clk 0:01:01]} 36... h6 {[%clk 0:00:51.8]} 37. Kg2 {[%clk 0:00:54.6]} 37...
Rd4 {[%clk 0:00:49.8]} 38. Rf5 {[%clk 0:00:50.1]} 38... Kg7 {[%clk 0:00:49.1]}
39. Re5 {[%clk 0:00:50.3]} 39... Kf8 {[%clk 0:00:47.5]} 40. Rf5 {[%clk
0:00:50.6]} 40... Rd6 {[%clk 0:00:47.6]} 41. Re5 {[%clk 0:00:47.9]} 41... Nd7
{[%clk 0:00:44.6]} 42. Rf5 {[%clk 0:00:48]} 42... f6 {[%clk 0:00:44.7]} 43. Rf3
{[%clk 0:00:46.7]} 43... Ne5 {[%clk 0:00:44.4]} 44. Rc3 {[%clk 0:00:41.2]} 44...
Rc6 {[%clk 0:00:42.8]} 45. Kg3 {[%clk 0:00:30.6]} 45... b5 {[%clk 0:00:39.4]}
46. f4 {[%clk 0:00:29.1]} 46... gxf4+ {[%clk 0:00:38.7]} 47. Kxf4 {[%clk
0:00:30]} 47... bxc4 {[%clk 0:00:39.1]} 48. Kf5 {[%clk 0:00:30.4]} 48... Ke7
{[%clk 0:00:35.6]} 49. bxc4 {[%clk 0:00:30.6]} 49... Rxc4 {[%clk 0:00:33.7]} 50.
Ra3 {[%clk 0:00:31.1]} 50... Rc7 {[%clk 0:00:32.1]} 51. Ra6 {[%clk 0:00:30.3]}
51... Nd7 {[%clk 0:00:30.6]} 52. h4 {[%clk 0:00:30.1]} 52... Kf7 {[%clk
0:00:30.2]} 53. g5 {[%clk 0:00:25.1]} 53... hxg5 {[%clk 0:00:29.6]} 54. hxg5
{[%clk 0:00:25.7]} 54... fxg5 {[%clk 0:00:30.1]} 55. Kxg5 {[%clk 0:00:25.9]}
55... Ke7 {[%clk 0:00:30.5]} 56. Kf5 {[%clk 0:00:26.2]} 56... Kd8 {[%clk
0:00:29.5]} 57. Ke4 {[%clk 0:00:25.9]} 57... Nc5+ {[%clk 0:00:29.5]} 0-1

[Event "Early-Titled-Tuesday-Blitz-April-02-2024"]
[Site "Chess.com"]
[Date "2024.04.02"]
[Round "1"]
[White "ragnaroek66"]
[Black "MetiForce"]
[Result "0-1"]
[WhiteElo "2503"]
[BlackElo "2869"]
[TimeControl "180+1"]
[EndTime "8:07:34 PDT"]
[Termination "MetiForce won by resignation"]

1. d4 {[%clk 0:03:00.9]} 1... d5 {[%clk 0:02:50.5]} 2. c4 {[%clk 0:02:54.8]}
2... e6 {[%clk 0:02:49]} 3. Nf3 {[%clk 0:02:54.6]} 3... Nf6 {[%clk 0:02:39.5]}
4. g3 {[%clk 0:02:54]} 4... dxc4 {[%clk 0:02:23.6]} 5. Bg2 {[%clk 0:02:53.4]}
5... Nc6 {[%clk 0:02:21.4]} 6. O-O {[%clk 0:02:51.1]} 6... Rb8 {[%clk
0:02:11.5]} 7. Qc2 {[%clk 0:02:41.9]} 7... b5 {[%clk 0:02:03.9]} 8. b3 {[%clk
0:02:34.5]} 8... Ba6 {[%clk 0:00:44.4]} 9. bxc4 {[%clk 0:00:40.3]} 9... bxc4
{[%clk 0:00:44.5]} 10. Rd1 {[%clk 0:00:36.7]} 10... Nb4 {[%clk 0:00:43]} 11. Qd2
{[%clk 0:00:33.3]} 11... Be7 {[%clk 0:00:38.6]} 12. Nc3 {[%clk 0:00:32.1]} 12...
Nbd5 {[%clk 0:00:39]} 13. Ne5 {[%clk 0:00:24.4]} 13... Rb6 {[%clk 0:00:39.6]}
14. Na4 {[%clk 0:00:22.8]} 14... c3 {[%clk 0:00:32.3]} 15. Qg5 {[%clk 0:00:20]}
15... O-O {[%clk 0:00:27]} 16. Nxb6 {[%clk 0:00:19]} 16... cxb6 {[%clk
0:00:21.8]} 17. Qh4 {[%clk 0:00:10.2]} 17... Bxe2 {[%clk 0:00:20.1]} 18. Re1
{[%clk 0:00:09.9]} 18... Bb5 {[%clk 0:00:19.5]} 19. Bg5 {[%clk 0:00:09.9]} 19...
h6 {[%clk 0:00:20.1]} 20. Bxf6 {[%clk 0:00:09.8]} 20... Bxf6 {[%clk 0:00:21]}
21. Qe4 {[%clk 0:00:10.3]} 21... Qc7 {[%clk 0:00:19.7]} 22. Rac1 {[%clk
0:00:09.9]} 22... Rc8 {[%clk 0:00:20]} 23. Nd3 {[%clk 0:00:10]} 23... Bxd3
{[%clk 0:00:18.9]} 24. Qxd3 {[%clk 0:00:09.8]} 24... Qc4 {[%clk 0:00:19.7]} 25.
Qc2 {[%clk 0:00:09.7]} 25... Bxd4 {[%clk 0:00:19.4]} 26. Red1 {[%clk 0:00:08.2]}
26... e5 {[%clk 0:00:18.7]} 27. Bxd5 {[%clk 0:00:07.4]} 27... Qxd5 {[%clk
0:00:19.6]} 28. Qd3 {[%clk 0:00:07.4]} 28... Qxa2 {[%clk 0:00:19]} 29. Rc2
{[%clk 0:00:06.9]} 29... Qe6 {[%clk 0:00:19.6]} 30. Ra1 {[%clk 0:00:06.6]} 30...
a5 {[%clk 0:00:19.8]} 31. Re1 {[%clk 0:00:06.6]} 31... Qf6 {[%clk 0:00:19.8]}
32. Kg2 {[%clk 0:00:05.4]} 32... g6 {[%clk 0:00:20.4]} 33. f3 {[%clk 0:00:05.4]}
33... h5 {[%clk 0:00:21.1]} 34. h4 {[%clk 0:00:04.7]} 34... Kg7 {[%clk
0:00:21.5]} 35. Rb1 {[%clk 0:00:05.3]} 35... Qc6 {[%clk 0:00:16.8]} 36. Rb5
{[%clk 0:00:06.2]} 36... Qc4 {[%clk 0:00:16.6]} 37. Qxc4 {[%clk 0:00:05.7]}
37... Rxc4 {[%clk 0:00:17.5]} 38. Kf1 {[%clk 0:00:05.5]} 38... Rb4 {[%clk
0:00:18.1]} 39. Rd5 {[%clk 0:00:04.4]} 39... Rb2 {[%clk 0:00:18.1]} 40. Rxb2
{[%clk 0:00:04.5]} 40... cxb2 {[%clk 0:00:19]} 41. Rb5 {[%clk 0:00:04.4]} 41...
a4 {[%clk 0:00:19.7]} 42. Ke2 {[%clk 0:00:04.8]} 42... a3 {[%clk 0:00:20.2]} 43.
Kd3 {[%clk 0:00:05.1]} 43... a2 {[%clk 0:00:20.8]} 0-1

[Event "Early-Titled-Tuesday-Blitz-April-02-2024"]
[Site "Chess.com"]
[Date "2024.04.02"]
[Round "1"]
[White "Elprofessor21"]
[Black "diamonds13"]
[Result "1-0"]
[WhiteElo "2668"]
[BlackElo "2369"]
[TimeControl "180+1"]
[EndTime "8:07:36 PDT"]
[Termination "Elprofessor21 won by resignation"]

1. f4 {[%clk 0:02:45.3]} 1... d5 {[%clk 0:02:58.6]} 2. Nf3 {[%clk 0:02:45.3]}
2... c5 {[%clk 0:02:57.6]} 3. e3 {[%clk 0:02:44.8]} 3... Nc6 {[%clk 0:02:57.6]}
4. Bb5 {[%clk 0:02:44.5]} 4... Bd7 {[%clk 0:02:56.4]} 5. O-O {[%clk 0:02:44.3]}
5... g6 {[%clk 0:02:56.3]} 6. Nc3 {[%clk 0:02:22.6]} 6... Nf6 {[%clk 0:02:53.5]}
7. d3 {[%clk 0:02:21.2]} 7... Bg7 {[%clk 0:02:53.2]} 8. Qe2 {[%clk 0:02:18.2]}
8... a6 {[%clk 0:02:52.7]} 9. Bxc6 {[%clk 0:02:18]} 9... Bxc6 {[%clk 0:02:52.8]}
10. Ne5 {[%clk 0:02:18.9]} 10... Qc7 {[%clk 0:02:51]} 11. Nxc6 {[%clk
0:02:06.7]} 11... Qxc6 {[%clk 0:02:50.7]} 12. e4 {[%clk 0:02:07.3]} 12... d4
{[%clk 0:02:46.1]} 13. Nd1 {[%clk 0:02:05.8]} 13... Nd7 {[%clk 0:02:44.5]} 14.
Nf2 {[%clk 0:02:02.3]} 14... h5 {[%clk 0:02:39.6]} 15. e5 {[%clk 0:01:57.3]}
15... f6 {[%clk 0:02:31.3]} 16. exf6 {[%clk 0:01:27.3]} 16... Nxf6 {[%clk
0:02:30.1]} 17. Bd2 {[%clk 0:01:16.2]} 17... Nd5 {[%clk 0:02:23.8]} 18. Rae1
{[%clk 0:01:11.8]} 18... O-O-O {[%clk 0:02:20.2]} 19. Qe6+ {[%clk 0:01:08.2]}
19... Qxe6 {[%clk 0:02:20]} 20. Rxe6 {[%clk 0:01:08.5]} 20... Rd6 {[%clk
0:02:16.9]} 21. Rfe1 {[%clk 0:00:51.7]} 21... Kd7 {[%clk 0:02:06]} 22. R6e2
{[%clk 0:00:43.8]} 22... Rb6 {[%clk 0:01:59.6]} 23. Bc1 {[%clk 0:00:39.1]} 23...
Rc8 {[%clk 0:01:51.2]} 24. Ne4 {[%clk 0:00:30.7]} 24... c4 {[%clk 0:01:42.8]}
25. dxc4 {[%clk 0:00:29.2]} 25... Rxc4 {[%clk 0:01:41.4]} 26. Rd1 {[%clk
0:00:19.1]} 26... Rbc6 {[%clk 0:01:40.4]} 27. c3 {[%clk 0:00:19.2]} 27... e6
{[%clk 0:01:30.6]} 28. Bd2 {[%clk 0:00:10.4]} 28... Ra4 {[%clk 0:01:19.1]} 29.
a3 {[%clk 0:00:08.5]} 29... Ke7 {[%clk 0:01:09]} 30. Rde1 {[%clk 0:00:06.1]}
30... d3 {[%clk 0:01:07.8]} 31. Rf2 {[%clk 0:00:05.7]} 31... Nb6 {[%clk
0:00:53.5]} 32. Bc1 {[%clk 0:00:04.8]} 32... Ra5 {[%clk 0:00:36.9]} 33. b3
{[%clk 0:00:04.7]} 33... Bxc3 {[%clk 0:00:32.5]} 34. Nxc3 {[%clk 0:00:05]} 34...
Rxc3 {[%clk 0:00:31.3]} 35. Bd2 {[%clk 0:00:05.7]} 35... Rac5 {[%clk 0:00:31.2]}
36. Bxc3 {[%clk 0:00:06.3]} 36... Rxc3 {[%clk 0:00:31.6]} 37. Rd2 {[%clk
0:00:06.9]} 37... Nd5 {[%clk 0:00:28.9]} 38. g3 {[%clk 0:00:06.4]} 38... Rxb3
{[%clk 0:00:26.3]} 39. a4 {[%clk 0:00:06.1]} 39... b5 {[%clk 0:00:24.5]} 40.
axb5 {[%clk 0:00:06]} 40... axb5 {[%clk 0:00:24.9]} 41. Red1 {[%clk 0:00:06.7]}
41... Nb4 {[%clk 0:00:25]} 42. Kf2 {[%clk 0:00:06.9]} 42... Kd6 {[%clk
0:00:23.2]} 43. Ke3 {[%clk 0:00:07.5]} 43... Kd5 {[%clk 0:00:22.5]} 44. Rc1
{[%clk 0:00:07]} 44... Nc2+ {[%clk 0:00:20.5]} 45. Rcxc2 {[%clk 0:00:07.2]} 1-0